bitfinex-derivatives/quotes_BTCF0:USTF0_20251215
["timestamp","ask_amount","ask_price","bid_price","bid_amount"]
[1765816316718,0.35308087,86747.0,86746.0,0.66918]
[1765816316913,0.85097087,86747.0,86746.0,0.66918]
[1765816317522,0.83944287,86747.0,86746.0,0.66918]
[1765816317726,0.17017287,86747.0,86746.0,0.88041]
[1765816319414,0.51355287,86747.0,86746.0,0.88041]
[1765816319610,0.17317287,86747.0,86746.0,0.88041]
[1765816319922,0.84244287,86747.0,86746.0,0.3363]
[1765816320111,0.85244287,86747.0,86746.0,0.66918]
[1765816320309,0.66927,86739.0,86738.0,0.35878305]
[1765816320519,0.86927,86739.0,86738.0,0.02248305]
[1765816321327,0.2,86739.0,86738.0,0.69166305]
[1765816321515,0.86927,86739.0,86738.0,0.35878305]
[1765816321721,0.66927,86739.0,86738.0,0.02248305]
[1765816322016,0.33448,86722.0,86721.0,0.6935414]
[1765816322216,0.33665287,86747.0,86746.0,0.33539]
[1765816322421,0.0115275,86751.0,86749.0,0.68201]
[1765816322624,0.84477018,86750.0,86749.0,0.68201]
[1765816322925,0.0115293,86737.0,86736.0,0.68201]
[1765816323222,0.01153,86732.0,86731.0,0.68201]
[1765816323529,0.33448,86725.0,86724.0,0.68201]
[1765816323726,0.51448,86725.0,86724.0,0.68201]
[1765816323931,0.19,86725.0,86724.0,0.87794]
[1765816324830,0.19,86725.0,86715.0,0.02941238]
[1765816324831,0.67463,86717.0,86716.0,0.70276635]
[1765816325129,0.6861619,86717.0,86716.0,0.02075635]
[1765816325339,0.8761619,86717.0,86716.0,0.02075635]
[1765816325925,0.2015319,86717.0,86716.0,0.70276635]
[1765816326323,0.8761619,86717.0,86716.0,0.70276635]
[1765816326523,0.8821619,86717.0,86716.0,0.02075635]
[1765816326938,0.8761619,86717.0,86716.0,0.02075635]
[1765816327246,0.8761619,86717.0,86698.0,0.00230687]
[1765816327247,0.011534,86702.0,86701.0,0.33539]
[1765816327420,0.19,86702.0,86701.0,0.70240384]
[1765816327624,0.00017297,86710.0,86709.0,0.68201]
[1765816327834,0.17017297,86710.0,86709.0,0.68201]
[1765816328020,0.0115339,86702.0,86701.0,0.70240384]
[1765816328222,0.8761639,86702.0,86701.0,0.02039384]
[1765816328532,0.8761639,86702.0,86698.0,0.00230687]
[1765816328533,0.67463,86699.0,86698.0,0.00230687]
[1765816328833,0.67463,86699.0,86678.0,9.47e-05]
[1765816328834,0.686167,86679.0,86678.0,0.3354847]
[1765816329026,0.856167,86679.0,86678.0,0.3354847]
[1765816329334,0.00017297,86687.0,86686.0,0.68201]
[1765816329538,0.18017297,86687.0,86686.0,0.68201]
[1765816330125,0.28096936,86710.0,86686.0,0.68201]
[1765816330126,0.0115333,86707.0,86698.0,0.68201]
[1765816330426,0.2197612,86723.0,86698.0,0.68201]
[1765816330427,0.09168226,86699.0,86698.0,0.68201]
[1765816330636,0.17014796,86699.0,86698.0,0.68201]
[1765816331436,0.17214796,86699.0,86698.0,0.68201]
[1765816332226,0.01170637,86707.0,86706.0,0.68201]
[1765816332436,0.18017297,86707.0,86706.0,0.68201]
[1765816332740,0.0115298,86734.0,86720.0,0.68201]
[1765816332932,0.0115298,86734.0,86733.0,0.68201]
[1765816332933,0.2115298,86734.0,86733.0,0.68201]
[1765816333242,0.21161647,86734.0,86733.0,0.68201]
[1765816333428,0.20008667,86734.0,86733.0,0.68201]
[1765816333629,0.18008667,86734.0,86733.0,0.68201]
[1765816333938,0.18208667,86734.0,86733.0,0.68201]
[1765816334136,0.06140634,86777.0,86733.0,0.68201]
[1765816334137,0.20823,86775.0,86757.0,0.0115266]
[1765816334343,0.0115258,86764.0,86763.0,0.68201]
[1765816334536,0.27,86778.0,86767.0,0.68201]
[1765816334843,0.011525,86770.0,86767.0,0.68201]
[1765816335040,0.0115252,86768.0,86767.0,0.70195994]
[1765816335226,0.20116151,86768.0,86767.0,0.01994994]
[1765816335432,0.0115262,86760.0,86759.0,0.49567286]
[1765816335634,0.1715262,86760.0,86759.0,0.49567286]
[1765816335836,0.1715262,86760.0,86759.0,0.26779571]
[1765816336541,0.1745262,86760.0,86759.0,0.26779571]
[1765816336939,0.1755262,86760.0,86759.0,0.26779571]
[1765816337333,0.1745262,86760.0,86759.0,0.26779571]
[1765816337538,0.1755262,86760.0,86759.0,0.26779571]
[1765816337739,0.8501562,86760.0,86759.0,0.02004571]
[1765816337945,0.87958662,86760.0,86759.0,0.02004571]
[1765816338335,0.87958662,86760.0,86759.0,0.26779571]
[1765816338735,0.87958662,86760.0,86759.0,0.02004571]
[1765816338935,0.8501562,86760.0,86759.0,0.02004571]
[1765816340341,0.8471562,86760.0,86759.0,0.26779571]
[1765816340543,0.8491562,86760.0,86759.0,0.26779571]
[1765816340741,0.163,86760.0,86759.0,0.51554571]
[1765816340950,0.83763,86760.0,86759.0,0.02004571]
[1765816341439,0.88853014,86760.0,86759.0,0.02004571]
[1765816341836,0.33448,86745.0,86744.0,0.76875]
[1765816342039,0.011528,86747.0,86746.0,0.4955]
[1765816342251,0.181528,86747.0,86746.0,0.4955]
[1765816342454,0.856158,86747.0,86744.0,0.521]
[1765816342741,0.856158,86747.0,86746.0,0.24775]
[1765816342948,0.67463,86745.0,86744.0,0.02057924]
[1765816343148,0.6861592,86738.0,86737.0,0.00017286]
[1765816343337,0.8561592,86738.0,86737.0,0.02051066]
[1765816343748,0.85629541,86738.0,86737.0,0.02051066]
[1765816345145,0.20823,86710.0,86709.0,0.548053]
[1765816345446,0.26,86724.0,86723.0,0.0115311]
[1765816345632,0.20823,86736.0,86734.0,0.26826]
[1765816345839,0.38823,86736.0,86735.0,0.53652]
[1765816346235,0.7342394,86736.0,86735.0,0.53652]
[1765816346543,0.0115302,86731.0,86727.0,0.26843296]
[1765816346749,0.17,86731.0,86728.0,0.0115305]
[1765816346943,0.0115302,86730.0,86729.0,0.26826]
[1765816347140,0.2115302,86730.0,86729.0,0.26826]
[1765816347449,0.2,86730.0,86729.0,0.26826]
[1765816347942,0.67463,86728.0,86727.0,0.00017296]
[1765816348138,0.87463,86728.0,86727.0,0.00017296]
[1765816348333,0.87463,86728.0,86727.0,0.53669296]
[1765816348334,0.53448,86728.0,86727.0,0.53669296]
[1765816348538,0.87463,86728.0,86727.0,0.00017296]
[1765816348742,0.53448,86728.0,86727.0,0.26843296]
[1765816348946,0.2,86728.0,86727.0,0.53669296]
[1765816349948,0.36516541,86738.0,86737.0,0.53652]
[1765816350147,0.36516541,86738.0,86727.0,0.00317296]
[1765816350148,0.70735,86728.0,86727.0,0.00317296]
[1765816350349,0.88735,86728.0,86727.0,0.00317296]
[1765816350753,0.87735,86728.0,86727.0,0.00317296]
[1765816351247,0.90735,86728.0,86727.0,0.00317296]
[1765816351746,0.2,86728.0,86706.0,0.0115334]
[1765816351953,0.19967,86710.0,86709.0,0.548393]
[1765816352138,0.69805,86710.0,86709.0,0.548393]
[1765816352542,0.36967,86710.0,86709.0,0.548393]
[1765816352847,0.00017296,86718.0,86717.0,0.5483919]
[1765816353242,0.011525,86770.0,86737.0,0.5483893]
[1765816353439,0.0115258,86764.0,86739.0,0.011529]
[1765816353649,0.36967,86762.0,86751.0,0.0115273]
[1765816353948,0.02876402,86761.0,86740.0,0.23387945]
[1765816354142,0.02876402,86761.0,86737.0,0.7258]
[1765816354143,0.00017296,86759.0,86750.0,0.0115275]
[1765816354340,0.32838,86751.0,86746.0,0.0115281]
[1765816354553,0.19967,86744.0,86743.0,0.0115285]
[1765816354847,0.19,86744.0,86743.0,0.5483885]
[1765816355351,1.05838,86744.0,86743.0,0.0115285]
[1765816355545,1.05838,86744.0,86743.0,0.5483885]
[1765816355546,0.19,86744.0,86743.0,0.5483885]
[1765816355751,0.19,86744.0,86743.0,0.0115285]
[1765816355752,1.05838,86744.0,86743.0,0.0115285]
[1765816356050,1.0699084,86744.0,86743.0,0.0115285]
[1765816356651,1.0699084,86744.0,86742.0,0.00017296]
[1765816356949,0.32838,86743.0,86742.0,0.00017296]
[1765816357146,0.66871,86743.0,86742.0,0.00017296]
[1765816357342,0.86871,86743.0,86742.0,0.00017296]
[1765816358345,0.86971,86743.0,86742.0,0.00017296]
[1765816358653,0.87271,86743.0,86742.0,0.00017296]
[1765816359255,0.86971,86743.0,86742.0,0.00017296]
[1765816359557,0.87271,86743.0,86742.0,0.00017296]
[1765816360553,0.86271,86743.0,86742.0,0.00017296]
[1765816361254,0.86371,86743.0,86742.0,0.00017296]
[1765816361453,0.195,86743.0,86742.0,0.53703296]
[1765816361645,0.175,86743.0,86742.0,0.53703296]
[1765816362257,0.005,86743.0,86742.0,0.53703296]
[1765816362445,0.062,86743.0,86742.0,0.53703296]
[1765816362642,0.062,86743.0,86742.0,1.0523167]
[1765816362643,0.003,86743.0,86742.0,1.0523167]
[1765816362847,0.00017296,86759.0,86757.0,0.53686]
[1765816363155,0.19005819,86758.0,86757.0,0.53686]
[1765816364255,5.819e-05,86758.0,86757.0,1.16604381]
[1765816364550,0.0115239,86778.0,86774.0,0.5483844]
[1765816364750,0.3811942,86775.0,86774.0,0.5483844]
[1765816364951,0.3811942,86775.0,86774.0,2.0483844]
[1765816365160,0.36967,86775.0,86774.0,2.0483844]
[1765816365549,0.36967,86775.0,86774.0,2.06826876]
[1765816365753,0.69805,86775.0,86774.0,2.06826876]
[1765816366054,0.36967,86775.0,86774.0,2.06826876]
[1765816366248,1.03838,86775.0,86774.0,1.51988436]
[1765816367248,1.04038,86775.0,86774.0,1.51988436]
[1765816367444,0.172,86775.0,86774.0,1.51988436]
[1765816367651,0.002,86775.0,86774.0,1.54900019]
[1765816367953,0.00017296,86783.0,86782.0,0.5483833]
[1765816368257,0.19017296,86783.0,86782.0,0.5483833]
[1765816369461,0.20169616,86783.0,86782.0,0.5483833]
[1765816369657,0.19017296,86783.0,86782.0,0.5483833]
[1765816370545,0.06117296,86783.0,86782.0,0.5483833]
[1765816371053,0.16117296,86783.0,86782.0,1.26206]
[1765816371252,0.16017296,86783.0,86782.0,1.26206]
[1765816373665,0.48855296,86783.0,86782.0,1.26198]
[1765816374255,0.16117296,86783.0,86782.0,1.26198]
[1765816374954,0.16217296,86783.0,86782.0,1.3772106]
[1765816375252,0.86838,86800.0,86799.0,0.53686]
[1765816375451,1.03838,86800.0,86799.0,0.26843]
[1765816375767,1.03838,86800.0,86799.0,0.53686]
[1765816375768,0.17,86800.0,86799.0,0.53686]
[1765816376063,0.5099009,86800.0,86799.0,0.53686]
[1765816376365,0.5099009,86800.0,86795.0,0.72504]
[1765816376366,0.8799015,86796.0,86795.0,0.99347]
[1765816376556,1.0499015,86796.0,86795.0,0.99347]
[1765816376758,1.0499015,86796.0,86795.0,0.08984895]
[1765816376961,1.0499015,86796.0,86795.0,0.725]
[1765816377758,0.66358,86792.0,86791.0,0.00017285]
[1765816377959,0.86358,86792.0,86791.0,0.01169495]
[1765816378166,0.86358,86792.0,86791.0,0.54855495]
[1765816378351,0.86358,86792.0,86791.0,0.00017285]
[1765816378963,0.6812237,86779.0,86774.0,1.51988436]
[1765816379166,0.8612237,86779.0,86774.0,1.51988436]
[1765816380060,0.8612237,86779.0,86774.0,0.01988436]
[1765816380568,0.8612237,86779.0,86778.0,0.00330474]
[1765816380963,0.8612237,86779.0,86770.0,0.00017285]
[1765816380964,0.6812248,86771.0,86770.0,0.00017285]
[1765816381266,0.8597,86771.0,86770.0,0.56446269]
[1765816381454,0.8597,86771.0,86770.0,2.06446269]
[1765816381658,0.8597,86771.0,86770.0,1.79273269]
[1765816381861,0.8597,86771.0,86770.0,1.52100269]
[1765816382062,0.8597,86771.0,86770.0,0.02100269]
[1765816383269,1.2597,86771.0,86770.0,0.02100269]
[1765816383467,0.9043178,86748.0,86747.0,0.10347252]
[1765816383766,0.36983,86748.0,86747.0,0.58557674]
[1765816383968,0.36983,86748.0,86747.0,0.60584336]
[1765816384267,0.16,86748.0,86747.0,0.69677457]
[1765816384465,1.05279,86748.0,86747.0,0.40404457]
[1765816384655,1.05279,86748.0,86747.0,0.11131457]
[1765816385054,1.05279,86748.0,86747.0,0.69677457]
[1765816385354,0.35983,86748.0,86747.0,0.69677457]
[1765816385559,0.01169965,86756.0,86755.0,0.5969869]
[1765816385769,0.0115278,86749.0,86748.0,0.0115274]
[1765816386064,0.2,86749.0,86748.0,1.3227478]
[1765816386264,0.00017285,86756.0,86755.0,0.5969869]
[1765816386458,0.23387945,86790.0,86755.0,0.5969869]
[1765816386459,0.11,86770.0,86769.0,0.011525]
[1765816386665,0.47941,86784.0,86777.0,0.0115239]
[1765816386968,0.38941,86784.0,86783.0,0.5969832]
[1765816387767,0.00017285,86792.0,86791.0,0.5969821]
[1765816387960,0.18017285,86792.0,86791.0,0.5969821]
[1765816388156,0.19983,86788.0,86786.0,0.0115227]
[1765816388466,0.19983,86788.0,86780.0,0.23387945]
[1765816388467,0.17,86788.0,86787.0,0.5969826]
[1765816388764,0.17,86788.0,86787.0,0.69109787]
[1765816389269,0.00017285,86792.0,86791.0,0.5969821]
[1765816389460,0.04017285,86792.0,86791.0,1.3227821]
[1765816389655,0.04217285,86792.0,86791.0,1.3227821]
[1765816392368,0.7044832,86783.0,86775.0,0.10352863]
[1765816392573,0.89296,86783.0,86782.0,0.0115233]
[1765816392759,0.86296,86783.0,86782.0,0.3042533]
[1765816392955,0.69296,86779.0,86778.0,0.0115238]
[1765816393262,0.69296,86779.0,86775.0,0.00017285]
[1765816393263,0.69296,86776.0,86775.0,0.29290285]
[1765816393460,0.89296,86776.0,86775.0,0.00217285]
[1765816393858,0.89296,86776.0,86775.0,0.00117285]
[1765816394273,0.89296,86776.0,86775.0,0.00017285]
[1765816395160,0.89396,86776.0,86775.0,0.00017285]
[1765816395764,0.89596,86776.0,86775.0,0.00017285]
[1765816396467,0.89296,86776.0,86775.0,0.00017285]
[1765816396673,0.89696,86776.0,86775.0,0.00017285]
[1765816396968,0.904316,86762.0,86761.0,0.10335578]
[1765816397174,0.7044865,86758.0,86757.0,0.10335578]
[1765816397363,0.8844865,86758.0,86756.0,0.10335578]
[1765816397563,0.69296,86757.0,86756.0,0.10335578]
[1765816397761,0.87296,86757.0,86756.0,0.10335578]
[1765816398371,0.18,86757.0,86756.0,0.5969867]
[1765816398575,0.00017285,86765.0,86764.0,0.5969857]
[1765816398771,0.00017285,86765.0,86764.0,1.3225057]
[1765816399075,0.004,86776.0,86775.0,0.5969842]
[1765816399465,0.002,86776.0,86775.0,0.5969842]
[1765816399661,0.3666029,86786.0,86785.0,0.0115229]
[1765816399861,0.8944829,86786.0,86780.0,0.0115235]
[1765816400062,0.19983,86775.0,86774.0,0.58546]
[1765816400269,1.06279,86775.0,86774.0,0.72576]
[1765816400674,1.06279,86775.0,86774.0,1.01849]
[1765816400869,1.06279,86775.0,86774.0,0.29273]
[1765816401176,0.36983,86775.0,86772.0,1.0429846]
[1765816401383,0.36983,86775.0,86774.0,0.29373]
[1765816401567,1.06279,86775.0,86774.0,0.001]
[1765816402172,0.7044853,86767.0,86766.0,0.00017285]
[1765816402367,0.86296,86767.0,86766.0,0.00017285]
[1765816402563,0.17,86767.0,86766.0,0.58563285]
[1765816402763,0.86296,86767.0,86766.0,0.00017285]
[1765816403169,0.86296,86767.0,86766.0,0.59715825]
[1765816403170,0.17,86767.0,86766.0,0.59715825]
[1765816403371,0.89279,86775.0,86774.0,0.0115244]
[1765816403568,1.07279,86775.0,86774.0,0.0115244]
[1765816403782,0.37983,86775.0,86774.0,0.5969844]
[1765816403988,0.69296,86771.0,86770.0,0.10342543]
[1765816404281,0.7044853,86767.0,86766.0,0.00017285]
[1765816404467,0.8844853,86767.0,86766.0,0.00017285]
[1765816404667,0.7044857,86764.0,86763.0,0.09468616]
[1765816404864,0.7044866,86757.0,86756.0,0.09468616]
[1765816405074,0.9043177,86749.0,86748.0,0.14451649]
[1765816405281,0.69296,86748.0,86743.0,0.0115284]
[1765816405470,0.88296,86748.0,86746.0,0.011528]
[1765816405865,0.88296,86748.0,86739.0,0.00017285]
[1765816406273,0.7044889,86740.0,86739.0,0.00017285]
[1765816406583,0.8744889,86740.0,86739.0,0.00017285]
[1765816407078,0.86296,86740.0,86739.0,0.02010006]
[1765816407285,0.86307674,86740.0,86739.0,0.00017285]
[1765816407470,0.86407674,86740.0,86739.0,0.00017285]
[1765816407672,0.86407674,86740.0,86739.0,0.09265252]
[1765816407869,0.86407674,86740.0,86714.0,0.14451649]
[1765816407870,0.19983,86730.0,86720.0,0.23394614]
[1765816408072,0.0115305,86728.0,86719.0,0.7262]
[1765816408276,0.86296,86728.0,86727.0,0.0115306]
[1765816408688,0.17,86728.0,86727.0,0.5969906]
[1765816409375,0.00017296,86736.0,86735.0,0.5969896]
[1765816409568,0.19017296,86736.0,86735.0,1.3231496]
[1765816410971,6e-08,86736.0,86735.0,1.83844264]
[1765816411287,0.19983,86749.0,86748.0,0.58546]
[1765816411474,0.91522,86762.0,86761.0,0.0115261]
[1765816411785,1.08522,86762.0,86761.0,0.0115261]
[1765816411977,1.08522,86762.0,86748.0,0.72628]
[1765816411978,0.70715,86758.0,86757.0,0.0115266]
[1765816412178,0.87715,86758.0,86752.0,0.0115272]
[1765816412484,0.7033,86750.0,86749.0,0.00017296]
[1765816412682,0.8733,86750.0,86749.0,0.00017296]
[1765816412876,0.8733,86750.0,86749.0,0.29290296]
[1765816413076,0.17,86750.0,86749.0,0.58563296]
[1765816413587,0.8733,86750.0,86749.0,0.00017296]
[1765816413773,0.8743,86750.0,86749.0,0.29290296]
[1765816414484,0.8743,86750.0,86749.0,1.03079066]
[1765816414881,0.171,86750.0,86749.0,1.03079066]
[1765816415190,0.8848276,86750.0,86749.0,0.73906066]
[1765816415487,0.8733,86750.0,86749.0,0.74006066]
[1765816415678,0.8733,86750.0,86749.0,0.00217296]
[1765816415877,0.7033,86750.0,86749.0,0.00200296]
[1765816416077,0.7033,86750.0,86749.0,0.00117296]
[1765816416078,0.9033,86750.0,86749.0,0.00117296]
[1765816416683,0.9033,86750.0,86749.0,0.00217296]
[1765816417088,0.9033,86750.0,86745.0,0.0115281]
[1765816417293,0.7033,86746.0,86745.0,0.0115281]
[1765816417490,0.35146,86742.0,86741.0,0.0115287]
[1765816417693,0.9033,86742.0,86741.0,0.0115287]
[1765816418490,0.2,86742.0,86741.0,0.71627377]
[1765816418694,0.21479,86749.0,86748.0,0.6009878]
[1765816418983,0.39479,86749.0,86748.0,0.6009878]
[1765816419193,1.09809,86749.0,86748.0,0.3062578]
[1765816419378,0.39479,86749.0,86748.0,0.6009878]
[1765816419988,0.39479,86749.0,86748.0,0.6019878]
[1765816420190,0.18,86749.0,86748.0,0.6019878]
[1765816421274,0.001,86750.0,86749.0,0.58946]
[1765816421479,0.001,86750.0,86748.0,0.0125278]
[1765816421480,0.0115251,86769.0,86761.0,0.6009861]
[1765816421675,0.19983,86772.0,86761.0,0.6009861]
[1765816421676,0.19983,86772.0,86765.0,0.6009856]
[1765816421879,0.11017296,86766.0,86765.0,0.6009856]
[1765816422988,0.00017296,86766.0,86765.0,0.71623878]
[1765816423285,0.70560474,86778.0,86777.0,0.011524]
[1765816423491,0.90560474,86778.0,86777.0,1.032454]
[1765816423692,0.55414474,86778.0,86777.0,1.032454]
[1765816423885,0.06230474,86778.0,86777.0,1.032454]
[1765816424285,0.76560474,86778.0,86777.0,1.032454]
[1765816424585,0.89560474,86778.0,86777.0,0.737684]
[1765816425090,0.89560474,86778.0,86777.0,1.032414]
[1765816425091,0.19230474,86778.0,86777.0,1.032414]
[1765816425290,0.19230474,86778.0,86777.0,1.033414]
[1765816425680,0.19230474,86778.0,86777.0,1.034414]
[1765816426386,0.89560474,86778.0,86777.0,0.738684]
[1765816426591,0.89560474,86778.0,86777.0,0.002]
[1765816427692,0.86560474,86778.0,86777.0,0.002]
[1765816428597,0.86560474,86778.0,86777.0,0.001]
[1765816428782,0.86560474,86778.0,86777.0,0.002]
[1765816428990,0.86560474,86778.0,86777.0,0.013524]
[1765816429189,0.86560474,86778.0,86777.0,0.012524]
[1765816429392,0.86560474,86778.0,86777.0,0.011524]
[1765816429595,0.86560474,86778.0,86777.0,0.001]
[1765816432593,0.7148249,86770.0,86769.0,0.00017286]
[1765816432794,0.7148261,86761.0,86760.0,0.0115262]
[1765816433092,0.8948261,86761.0,86760.0,0.0115262]
[1765816433292,0.8833,86761.0,86760.0,0.0115262]
[1765816434001,0.7033,86756.0,86755.0,0.4703269]
[1765816434200,0.8833,86756.0,86755.0,0.0115269]
[1765816434597,0.8833,86756.0,86755.0,0.6029869]
[1765816435298,0.8833,86756.0,86755.0,0.0115269]
[1765816435601,0.8833,86756.0,86755.0,0.0155269]
[1765816435898,0.8833,86756.0,86755.0,0.009]
[1765816436104,0.8833,86756.0,86755.0,0.005854]
[1765816436899,0.7033,86748.0,86747.0,0.1031745]
[1765816437098,0.8633,86748.0,86747.0,0.1031745]
[1765816437304,0.7033,86747.0,86746.0,0.011528]
[1765816437605,0.8733,86747.0,86746.0,0.011528]
[1765816437805,0.7033,86745.0,86744.0,0.1031745]
[1765816438100,0.7148284,86744.0,86743.0,0.1031745]
[1765816438301,0.8748284,86744.0,86743.0,0.1031745]
[1765816438497,0.7148288,86741.0,86740.0,0.7372888]
[1765816438798,0.8848288,86741.0,86740.0,0.7372888]
[1765816439003,0.8733,86741.0,86740.0,0.7372888]
[1765816439200,0.7033,86736.0,86735.0,0.09372901]
[1765816439406,0.8633,86736.0,86735.0,0.09372901]
[1765816439598,0.8633,86736.0,86735.0,0.26604938]
[1765816439906,0.8633,86736.0,86735.0,0.17232037]
[1765816440298,0.8633,86736.0,86732.0,0.14451649]
[1765816440299,0.7148298,86733.0,86732.0,0.14451649]
[1765816440500,0.1815298,86733.0,86730.0,0.14451649]
[1765816440699,0.7033,86731.0,86730.0,0.14451649]
[1765816440900,0.7033,86729.0,86728.0,0.14451649]
[1765816441208,0.2,86729.0,86728.0,0.85117865]
[1765816441404,0.2,86729.0,86728.0,0.60316]
[1765816441608,0.21479,86735.0,86728.0,0.60316]
[1765816441609,0.21479,86735.0,86734.0,0.6146897]
[1765816441805,0.001,86736.0,86735.0,0.60316]
[1765816442008,0.49488,86736.0,86735.0,0.60316]
[1765816442400,0.89134,86735.0,86734.0,0.0115297]
[1765816442596,0.17,86735.0,86734.0,0.6146897]
[1765816442799,0.0115279,86748.0,86743.0,0.6146885]
[1765816443001,0.84946286,86744.0,86743.0,0.0115285]
[1765816443507,0.84946286,86744.0,86743.0,0.3131085]
[1765816444101,0.17017286,86744.0,86743.0,0.6146885]
[1765816444310,0.17117286,86744.0,86743.0,0.6146885]
[1765816444808,0.89408,86757.0,86756.0,0.0115268]
[1765816444999,1.07408,86757.0,86756.0,0.3131068]
[1765816445706,1.07408,86757.0,86756.0,0.6146868]
[1765816446008,0.67929,86753.0,86752.0,0.0115272]
[1765816446212,0.85929,86753.0,86752.0,0.0115272]
[1765816446393,0.85929,86753.0,86752.0,0.3131072]
[1765816446599,0.85929,86753.0,86752.0,0.6146872]
[1765816446798,0.18,86753.0,86752.0,0.6146872]
[1765816447703,0.85929,86753.0,86752.0,0.0115272]
[1765816448211,0.85929,86753.0,86752.0,0.0125272]
[1765816448407,0.85929,86753.0,86752.0,0.001]
[1765816448814,0.67929,86749.0,86748.0,0.00017286]
[1765816449001,0.8608177,86749.0,86748.0,0.00017286]
[1765816449306,0.67929,86742.0,86741.0,0.0293718]
[1765816449505,0.84929,86742.0,86741.0,0.0293718]
[1765816449707,0.21205,86736.0,86730.0,0.15947634]
[1765816450010,0.67929,86732.0,86731.0,0.18380112]
[1765816450310,0.87929,86732.0,86731.0,0.90944112]
[1765816451117,0.87929,86732.0,86731.0,1.21102112]
[1765816451306,0.52488,86732.0,86731.0,1.21302112]
[1765816452101,0.87929,86732.0,86731.0,0.0135301]
[1765816452298,0.87929,86732.0,86731.0,0.002]
[1765816452808,0.87929,86732.0,86731.0,0.0135301]
[1765816452999,0.87929,86732.0,86731.0,0.6166901]
[1765816453403,0.87929,86732.0,86731.0,0.6156901]
[1765816453913,0.202,86732.0,86731.0,0.6156901]
[1765816454312,0.2,86732.0,86731.0,0.6146901]
[1765816454816,0.87929,86732.0,86731.0,0.0115301]
[1765816455312,0.87929,86732.0,86731.0,0.002]
[1765816455807,0.87929,86732.0,86731.0,0.003]
[1765816456212,0.87929,86732.0,86721.0,0.10344904]
[1765816456213,0.6908213,86722.0,86721.0,0.10344904]
[1765816456519,0.6908213,86722.0,86720.0,1.53195817]
[1765816456520,0.67929,86721.0,86720.0,1.52042667]
[1765816456721,0.84929,86721.0,86720.0,1.52042667]
[1765816457613,0.87029,86721.0,86720.0,1.52042667]
[1765816458414,0.87029,86721.0,86707.0,0.14451649]
[1765816458415,0.67929,86709.0,86707.0,0.14451649]
[1765816458725,0.880823,86709.0,86702.0,0.55943649]
[1765816458913,0.880823,86709.0,86708.0,0.02103799]
[1765816459114,0.9028742,86700.0,86699.0,0.0115342]
[1765816459309,1.0728742,86700.0,86699.0,1.5]
[1765816459809,1.0728742,86700.0,86699.0,1.52076729]
[1765816460213,1.0738742,86700.0,86699.0,1.52076729]
[1765816460717,1.0748742,86700.0,86699.0,1.52076729]
[1765816461118,1.06334,86700.0,86699.0,1.52076729]
[1765816463522,1.06234,86700.0,86699.0,0.01737172]
[1765816463716,0.86029,86700.0,86699.0,0.67752]
[1765816463914,0.86029,86700.0,86699.0,2.17752]
[1765816464219,0.50588,86700.0,86699.0,2.1981269]
[1765816464420,0.182,86700.0,86699.0,2.1981269]
[1765816464617,0.86129,86700.0,86699.0,2.1981269]
[1765816465218,1e-07,86700.0,86699.0,2.1981269]
[1765816465412,0.67940313,86709.0,86708.0,0.0115331]
[1765816465611,0.86940313,86709.0,86708.0,0.7371331]
[1765816465811,0.86940313,86709.0,86708.0,0.7256]
[1765816466026,0.67929,86704.0,86703.0,0.0115337]
[1765816466322,0.67929,86700.0,86699.0,1.67683495]
[1765816466619,1.05134,86700.0,86699.0,1.67683495]
[1765816466821,0.83929,86700.0,86699.0,2.2579012]
[1765816467323,1.05134,86700.0,86699.0,2.2463669]
[1765816467621,0.83929,86700.0,86699.0,2.2463669]
[1765816468020,0.67929,86700.0,86699.0,0.0206069]
[1765816468217,0.6908263,86684.0,86663.0,0.02858199]
[1765816468418,0.8508263,86684.0,86673.0,0.0115377]
[1765816468609,0.8508263,86684.0,86674.0,1.5]
[1765816468610,0.16,86684.0,86674.0,1.5]
[1765816468814,0.011537,86680.0,86678.0,0.0115371]
[1765816469009,0.0115365,86683.0,86680.0,0.0115369]
[1765816469215,0.67929,86682.0,86681.0,0.72588]
[1765816469526,0.87929,86682.0,86681.0,0.72588]
[1765816470417,0.00017296,86692.0,86681.0,0.72588]
[1765816470418,0.00017296,86692.0,86691.0,0.7152654]
[1765816470613,0.17017296,86692.0,86691.0,1.4410654]
[1765816470813,0.00011313,86709.0,86708.0,0.7152631]
[1765816471020,0.07011313,86709.0,86708.0,1.4412231]
[1765816471420,0.00011313,86709.0,86708.0,1.4412231]
[1765816471828,0.00011313,86709.0,86708.0,1.53412334]
[1765816472017,0.00011313,86709.0,86692.0,0.0115352]
[1765816472220,0.0115339,86703.0,86692.0,0.01170816]
[1765816472427,0.35004,86702.0,86701.0,0.52650076]
[1765816472616,0.88332,86702.0,86701.0,0.3639341]
[1765816472815,0.88332,86702.0,86701.0,0.3524]
[1765816473228,0.18,86702.0,86701.0,0.70041]
[1765816474114,0.181,86702.0,86701.0,0.70041]
[1765816474822,0.181,86702.0,86701.0,0.70141]
[1765816475219,0.181,86702.0,86701.0,0.70041]
[1765816475426,0.00028609,86709.0,86708.0,0.70041]
[1765816475633,0.08028609,86709.0,86708.0,1.4379431]
[1765816476122,0.08028609,86709.0,86708.0,1.55328135]
[1765816476326,0.70332,86734.0,86733.0,0.0115296]
[1765816476522,0.88332,86734.0,86733.0,0.0115296]
[1765816476921,0.88332,86734.0,86733.0,0.3639296]
[1765816477230,0.18,86734.0,86733.0,0.7119396]
[1765816477527,0.183,86734.0,86733.0,0.7119396]
[1765816477726,0.53304,86734.0,86733.0,1.4378996]
[1765816478031,0.88632,86734.0,86733.0,0.72596]
[1765816478422,0.88932,86734.0,86733.0,0.72596]
[1765816478926,0.7148507,86726.0,86725.0,2.96e-06]
[1765816479115,0.8948507,86726.0,86725.0,2.96e-06]
[1765816479316,0.70332,86702.0,86699.0,0.10340046]
[1765816479517,0.70332,86700.0,86697.0,0.11493496]
[1765816479830,0.7148546,86697.0,86696.0,0.25072046]
[1765816480021,0.9148546,86697.0,86696.0,0.25072046]
[1765816481026,0.9148546,86697.0,86696.0,0.14732]
[1765816481526,0.9148546,86697.0,86696.0,0.001]
[1765816481925,0.9148546,86697.0,86696.0,0.002]
[1765816484426,1.1250246,86697.0,86696.0,0.002]
[1765816484827,0.9148546,86697.0,86696.0,0.002]